bitfinex/quotes_ETHUSD_20220119
["timestamp","ask_amount","ask_price","bid_price","bid_amount"]
[1642603980004,2.46908198,3150.1,3149.1,1.5881]
[1642603980203,0.00397897,3149.8,3149.2,3.25291218]
[1642603980604,0.00341055,3149.7,3149.6,2.95528953]
[1642603980804,1.59616346,3150.5,3149.9,0.7939]
[1642603981005,2.39006346,3150.7,3150.0,2.77176941]
[1642603981205,2.5221136,3151.0,3150.0,3.07176941]
[1642603981206,1.59616346,3150.8,3150.0,3.07176941]
[1642603981406,0.00511581,3150.6,3150.0,3.07176941]
[1642603981607,0.00511581,3150.6,3150.4,1.10519504]
[1642603981807,1.59616346,3150.8,3150.6,0.79379]
[1642603982008,1.5876,3151.4,3150.6,0.79379]
[1642603982009,1.59616346,3150.9,3150.6,0.79379]
[1642603982209,0.00682108,3150.9,3150.7,0.3]
[1642603982608,3.21312228,3151.5,3150.8,0.13819997]
[1642603982609,3.99667706,3151.5,3150.8,0.13819997]
[1642603982808,1.59616346,3151.6,3150.8,0.13819997]
[1642603983061,1.59616346,3151.8,3150.8,0.13819997]
[1642603983257,1.59616346,3151.6,3150.9,1.58717]
[1642603983456,0.00170527,3151.5,3151.0,2.68045]
[1642603983655,1.59616346,3151.6,3151.0,0.30113685]
[1642603983859,1.59616346,3151.2,3151.0,0.30113685]
[1642603984057,7.89616346,3151.1,3151.0,0.00113685]
[1642603984259,7.09385,3151.1,3151.0,0.00033685]
[1642603984457,8.69591157,3151.1,3151.0,0.00033685]
[1642603984662,8.69591157,3151.1,3149.6,0.79395]
[1642603984663,6.3,3151.0,3149.6,0.79395]
[1642603984859,6.3,3151.0,3149.7,1.5881]
[1642603984860,3.06439248,3150.9,3149.7,1.5881]
[1642603985060,1.60299126,3150.5,3149.7,1.5881]
[1642603985264,1.0,3150.8,3149.7,1.5881]
[1642603985265,1.60299126,3150.6,3149.8,2.760078]
[1642603985461,1.60299126,3150.7,3149.8,2.760078]
[1642603985671,0.79865378,3151.1,3150.3,1.38684985]
[1642603985672,1.60299126,3150.9,3150.3,1.38684985]
[1642603986162,3.19833689,3151.1,3150.3,1.38684985]
[1642603986163,2.40448689,3151.1,3150.4,3.06780302]
[1642603986359,1.60299126,3151.4,3150.4,3.36780302]
[1642603986558,1.60697022,3151.9,3150.5,1.00284212]
[1642603986826,1.60299126,3151.9,3151.5,0.79356]
[1642603987026,1.60299126,3152.0,3151.5,0.79356]
[1642603987427,4.00665228,3152.4,3151.5,0.79356]
[1642603987428,1.60924392,3152.1,3151.5,0.79356]
[1642603987628,1.60924392,3152.1,3151.6,0.3]
[1642603987827,0.00568424,3152.0,3151.6,0.3]
[1642603988027,1.60299126,3151.8,3151.6,0.3]
[1642603988429,0.00397896,3151.7,3151.6,0.3]
[1642603988831,0.00511581,3151.7,3151.6,0.3]
[1642603990547,3.15511581,3151.7,3151.6,3.06744782]
[1642603990953,0.00511581,3151.7,3151.6,3.06744782]
[1642603991258,3.21312228,3152.8,3151.6,3.06744782]
[1642603991259,4.00122497,3152.9,3151.9,2.37999]
[1642603991458,3.21312228,3153.2,3152.2,1.37999292]
[1642603991459,1.59673808,3153.1,3152.2,1.37999292]
[1642603991853,1.59673808,3153.1,3151.9,6.50108248]
[1642603992054,1.59673808,3152.8,3151.9,1.0567]
[1642603992257,1.59673808,3152.6,3151.6,0.00170527]
[1642603992457,1.49083117,3152.0,3151.6,0.00170527]
[1642603992654,1.49083117,3152.0,3151.3,0.00341054]
[1642603992955,1.32272007,3152.1,3151.3,0.00341054]
[1642603993457,0.79363,3152.1,3151.5,0.79366]
[1642603993655,1.58998212,3152.4,3151.5,0.79366]
[1642603993854,0.00284212,3152.4,3151.9,1.44005027]
[1642603994056,7.29208689,3153.1,3152.1,3.0]
[1642603994057,5.30373808,3153.1,3152.1,3.0]
[1642603994320,1.59673808,3153.2,3152.2,3.06439248]
[1642603994518,0.00227369,3152.7,3152.6,1.38622374]
[1642603994725,0.00454738,3153.1,3152.6,2.47948374]
[1642603994916,0.00568423,3153.3,3152.6,2.47948374]
[1642603995117,0.00397896,3153.0,3152.6,2.47948374]
[1642603995320,0.79326,3153.4,3152.6,1.09326]
[1642603995321,0.00511581,3153.2,3152.6,1.09326]
[1642603995520,0.00341054,3152.9,3152.6,1.09326]
[1642603995717,0.00454738,3153.1,3152.6,1.09326]
[1642603995918,0.00284211,3152.8,3152.6,0.17572707]
[1642603996123,0.00397896,3153.0,3152.6,0.17572707]
[1642603996318,1.31850824,3153.0,3152.6,0.17572707]
[1642603996518,0.00341054,3152.9,3152.6,0.17572707]
[1642603996729,0.79679054,3152.9,3152.6,0.17572707]
[1642603996926,0.79679054,3152.9,3152.0,4.65071523]
[1642603996927,0.00284211,3152.8,3152.0,4.65071523]
[1642603997127,0.00454738,3152.8,3152.0,1.89539685]
[1642603997326,0.00397896,3152.7,3152.5,1.58651]
[1642603997727,0.00341054,3152.6,3152.5,1.58651]
[1642603997948,0.00341054,3152.6,3151.9,4.44354]
[1642603997949,0.00341054,3152.6,3151.9,3.6502]
[1642603998153,0.00341054,3152.6,3152.0,0.3]
[1642603998353,0.00284211,3152.5,3151.7,2.37987]
[1642603998758,0.00227369,3152.4,3151.8,0.00113685]
[1642603998954,0.00227369,3152.4,3151.9,0.79353]
[1642603999157,0.00170527,3152.3,3151.9,0.79353]
[1642603999554,0.00113684,3152.2,3151.8,0.00113685]
[1642603999955,0.00170527,3152.3,3151.8,0.79471685]
[1642604000253,1.1334984,3152.6,3151.8,0.79358]
[1642604000254,0.79364,3152.1,3151.8,0.79358]
[1642604000656,1.00284211,3152.5,3151.8,0.79358]
[1642604000957,0.00227369,3152.4,3151.8,0.79358]
[1642604001361,0.00170527,3152.3,3151.8,0.79358]
[1642604001557,1.58742,3152.2,3151.4,0.3]
[1642604001798,2.38224284,3152.2,3151.3,0.00397897]
[1642604001997,2.38224284,3152.2,3151.5,0.00284212]
[1642604002209,2.38224284,3152.2,3150.9,3.2986]
[1642604002210,2.38224284,3152.2,3151.6,0.79365]
[1642604002498,0.79371,3152.1,3151.7,0.30170528]
[1642604003503,0.79371,3152.1,3151.7,1.88877528]
[1642604004104,0.79371,3152.1,3151.7,0.00170528]
[1642604004307,0.02411439,3152.0,3151.7,5.28e-06]
[1642604004505,0.02411439,3152.0,3150.1,3.17448]
[1642604004506,0.38,3151.9,3150.5,3.0341211]
[1642604004707,1.15547167,3151.3,3150.5,0.00682108]
[1642604004908,0.79388,3151.5,3150.5,0.00682108]
[1642604005107,0.79388,3151.5,3150.2,0.00852635]
[1642604005307,0.79388,3151.5,3150.3,0.79392]
[1642604005552,1.38334751,3151.1,3150.3,0.79392]
[1642604005753,0.7939,3150.9,3150.4,0.0073895]
[1642604005952,0.7939,3150.9,3150.4,0.3073895]
[1642604006560,3.52729875,3150.8,3150.4,0.0073895]
[1642604006955,1.0,3150.7,3150.3,0.00795792]
[1642604007155,1.0,3150.7,3150.0,0.00966319]
[1642604007356,0.79411,3150.5,3150.0,0.00966319]
[1642604007757,0.79411,3150.5,3150.0,0.80366319]
[1642604008158,0.79411,3150.5,3150.1,0.00909477]
[1642604008960,0.79411,3150.5,3150.2,1.40306239]
[1642604009214,0.79411,3150.5,3150.2,2.19699239]
[1642604009415,4.9468,3151.2,3150.3,0.00795792]
[1642604009416,3.9468,3151.2,3150.3,0.00795792]
[1642604009614,3.6643,3151.7,3150.3,0.00795792]
[1642604010017,3.6643,3151.7,3150.4,0.3]
[1642604010215,3.6643,3151.7,3151.0,1.4198331]
[1642604010414,0.00113685,3151.9,3151.0,1.4198331]
[1642604010415,0.00113685,3151.9,3151.1,2.17971614]
[1642604010613,0.00113685,3151.9,3151.2,0.3]
[1642604010812,0.00113685,3151.9,3151.2,0.30284211]
[1642604011012,0.00113685,3151.9,3151.3,0.00227369]
[1642604011214,0.79369,3151.7,3151.3,0.00227369]
[1642604011414,0.79369,3151.7,3151.4,0.79367]
[1642604011620,0.79369,3151.7,3151.2,0.00284211]
[1642604011822,0.42372741,3151.2,3150.9,0.3]
[1642604012018,0.42372741,3151.2,3150.9,0.30454738]
[1642604012322,0.79387,3151.1,3150.9,0.30454738]
[1642604012518,6.3,3151.0,3150.6,0.79397]
[1642604012719,6.3,3151.0,3150.3,1.58792]
[1642604012951,1.00284211,3150.9,3149.8,0.3]
[1642604013155,1.00284211,3150.9,3149.7,4.2455]
[1642604013357,0.79407,3150.6,3149.9,0.00284213]
[1642604013554,1.45219455,3150.5,3149.9,0.00284213]
[1642604014155,1.45219455,3150.5,3149.6,0.0045474]
[1642604014557,0.79408,3150.4,3150.0,1.58807]
[1642604014759,4.79219815,3150.3,3149.6,0.0045474]
[1642604014959,4.79219815,3150.3,3150.1,0.00170528]
[1642604015159,7.3,3150.2,3149.3,0.00625267]
[1642604015360,10.63226681,3150.2,3149.3,0.00625267]
[1642604015558,7.3,3150.2,3149.3,1.33320213]
[1642604015758,0.7942046,3150.1,3149.3,1.33320213]
[1642604015958,0.7942046,3150.1,3149.5,1.58835]
[1642604016158,7.3,3150.2,3149.7,0.3]
[1642604016700,7.3,3150.2,3149.8,0.00341055]
[1642604017303,1.0,3150.2,3149.8,0.79752055]
[1642604017704,0.00227368,3150.8,3149.9,0.3]
[1642604017906,0.00227368,3150.8,3150.0,1.58796]
[1642604018108,0.00170526,3150.7,3150.0,1.5902337]
[1642604018309,0.00170526,3150.7,3150.1,1.09568528]
[1642604018509,0.79508684,3150.6,3150.2,2.80476361]
[1642604018713,0.79508684,3150.6,3150.2,2.80590047]
[1642604018908,2.02046549,3151.2,3150.2,2.80590047]
[1642604018909,0.00284211,3150.9,3150.2,2.80590047]
[1642604019112,0.00284211,3150.9,3150.2,4.39345047]
[1642604019311,0.00227368,3150.8,3150.3,1.09378]
[1642604019709,0.00170526,3150.7,3150.3,1.09378]
[1642604019910,0.00170526,3150.7,3150.3,3.86714875]
[1642604020110,0.00113684,3150.6,3150.3,0.79378]
[1642604020548,3.12261462,3151.0,3150.3,0.79378]
[1642604020747,1.59673808,3151.0,3150.3,0.79378]
[1642604020949,1.00284211,3150.9,3150.3,0.79378]
[1642604021148,0.79388,3150.7,3150.2,1.58868686]
[1642604021349,2.39061808,3150.7,3150.2,1.58868686]
[1642604021548,1.59787492,3150.6,3150.2,1.58868686]
[1642604021749,0.00113684,3150.6,3150.2,1.58868686]
[1642604022750,0.79407,3150.5,3150.2,1.58868686]
[1642604023553,7.54943581,3150.3,3150.2,1.58868686]
[1642604023757,7.54943581,3150.3,3150.0,2.002494]
[1642604023758,6.3,3150.2,3150.0,2.002494]
[1642604023959,10.07099918,3150.2,3150.0,2.002494]
[1642604024213,7.30176948,3150.1,3150.0,2.002494]
[1642604024412,0.70176948,3149.6,3148.6,3.7359]
[1642604024616,0.70176948,3149.2,3148.6,3.7359]
[1642604024820,0.70176948,3149.2,3148.4,3.0341211]
[1642604024821,1.00176948,3149.2,3148.4,3.0341211]
[1642604025015,1.49622948,3148.9,3148.3,3.026]
[1642604025214,1.49622948,3148.9,3148.5,0.0096632]
[1642604025415,1.79622948,3148.9,3148.5,0.0096632]
[1642604025613,1.79622948,3148.9,3148.1,0.01193689]
[1642604025817,0.70176948,3148.6,3148.4,1.58896]
[1642604026015,0.70176948,3148.5,3148.4,1.88896]
[1642604026414,0.70176948,3148.5,3148.4,4.44919162]
[1642604026617,0.70176948,3148.5,3148.4,7.48331272]
[1642604026816,0.70176948,3148.5,3148.4,4.44919162]
[1642604027016,2.79075924,3149.9,3148.5,3.45]
[1642604027017,2.40079376,3149.8,3148.5,3.45]
[1642604027218,2.40079376,3149.8,3148.6,2.94820868]
[1642604027421,2.40079376,3149.8,3148.7,1.58852]
[1642604027422,0.79425,3149.2,3148.7,1.58852]
[1642604027619,0.79425,3149.2,3148.9,0.3]
[1642604027827,1.09425,3149.2,3148.9,0.3]
[1642604028051,1.8886683,3149.2,3149.0,0.00682108]
[1642604028251,6.27673653,3149.1,3149.0,0.00682108]
[1642604028552,5.75,3149.1,3149.0,0.00682108]
[1642604028754,2.58885,3149.1,3149.0,0.00682108]
[1642604029655,0.3,3149.2,3149.0,1.3484206]
[1642604029853,1.0,3149.9,3149.0,1.3484206]
[1642604030059,1.0,3149.9,3149.1,0.00625266]
[1642604030060,1.58828,3149.9,3149.1,0.00625266]
[1642604030254,0.16568247,3150.3,3149.2,0.79411]
[1642604030453,1.60685924,3150.5,3149.3,3.24480822]
[1642604030655,1.60799608,3150.6,3150.1,1.49690492]
[1642604030855,0.00113685,3150.4,3150.1,1.49690492]
[1642604031153,0.00170527,3150.5,3150.1,1.49690492]
[1642604031353,0.79398,3150.3,3150.1,2.29088492]
[1642604031998,0.79398,3150.3,3150.1,0.79398]
[1642604032202,1.09398,3150.3,3150.1,0.79398]
[1642604032401,1.09398,3150.3,3150.1,0.84383749]
[1642604032801,2.09398,3150.3,3150.1,0.84383749]
[1642604033605,2.09398,3150.3,3150.1,0.54383749]
[1642604034605,2.09398,3150.3,3150.0,1.58796]
[1642604035007,2.09398,3150.3,3149.8,0.79417]
[1642604035212,0.79418,3150.1,3149.8,0.79417]
[1642604035451,0.79418,3150.1,3149.9,0.00170527]
[1642604035651,1.09418,3150.1,3149.9,0.00170527]
[1642604035853,8.68284,3150.0,3149.1,1.58852]
[1642604036051,8.98284,3150.0,3149.2,0.3]
[1642604036250,1.0,3149.9,3149.3,0.79428]
[1642604036453,0.79424,3149.8,3149.3,0.79428]
[1642604036651,0.79424,3149.8,3149.4,0.00284211]
[1642604036851,1.09424,3149.8,3149.4,0.00284211]
[1642604037050,1.58856,3149.7,3149.4,0.00284211]
[1642604037452,2.58856,3149.7,3149.4,0.00284211]
[1642604037653,2.58856,3149.7,3148.6,3.7292]
[1642604037654,6.3,3149.5,3148.6,1.58875]
[1642604038058,0.7945,3149.2,3148.7,0.00397897]
[1642604038261,7.5708453,3148.8,3148.7,0.00397897]
[1642604038456,7.5708453,3148.8,3148.3,0.00625266]
[1642604038655,1.0,3148.7,3148.5,0.00511582]
[1642604038857,1.0,3148.7,3148.3,1.58892]
[1642604039057,0.79455,3148.6,3148.1,0.00738951]
[1642604039301,1.09455,3148.6,3148.4,0.00568424]
[1642604039500,0.3,3148.6,3147.9,0.00852636]
[1642604039700,1.5893081,3148.6,3147.9,0.00852636]
[1642604039900,1.8893081,3148.6,3147.9,1.59763636]
[1642604040099,0.3,3148.6,3148.1,0.3]
[1642604040503,1.0,3148.7,3148.2,0.00682109]
[1642604040504,1.3,3148.7,3148.2,0.00682109]
[1642604040704,0.79466,3148.4,3148.2,0.00682109]
[1642604040902,0.79466,3148.4,3148.2,0.80137109]
[1642604041100,2.09466,3148.4,3148.2,0.80137109]
[1642604041303,2.09466,3148.4,3148.3,0.00625266]
[1642604041911,2.09466,3148.4,3147.6,1.17781085]
[1642604041912,6.3,3148.3,3147.7,1.58926]
[1642604042109,6.3,3148.3,3146.9,3.637]
[1642604042110,0.79482,3147.9,3146.9,3.637]
[1642604042310,0.79482,3147.9,3147.8,0.00284212]
[1642604042509,1.09482,3147.9,3147.8,0.00284212]
[1642604042809,1.09482,3147.9,3147.7,0.00341054]
[1642604043064,3.31410726,3147.9,3147.7,0.00341054]
[1642604043262,1.09482,3147.9,3147.7,0.00341054]
[1642604043460,6.95,3147.8,3147.5,0.00454739]
[1642604043659,1.58938,3147.7,3147.6,0.79474]
[1642604044058,1.58938,3147.7,3147.6,0.79871897]
[1642604044663,1.58938,3147.7,3147.6,0.00397897]
[1642604044664,2.58938,3147.7,3147.6,0.00397897]
[1642604044864,2.88938,3147.7,3147.6,0.00397897]
[1642604045062,2.88938,3147.7,3146.4,6.9841]
[1642604045063,2.88938,3147.7,3147.3,0.00568424]
[1642604045261,0.79467,3147.6,3147.2,0.79484]
[1642604045462,0.79467,3147.6,3147.3,0.00568424]
[1642604045668,1.0,3148.2,3147.3,5.11834734]
[1642604045669,1.58916,3148.2,3147.3,5.11834734]
[1642604045861,0.38,3148.4,3147.3,5.11834734]
[1642604045862,1.60685924,3148.4,3147.3,6.70771734]
[1642604046063,1.60685924,3148.9,3148.1,1.12084555]
[1642604046263,1.60685924,3149.0,3148.3,0.79439]
[1642604046463,0.79439,3148.6,3148.3,0.79439]
[1642604046725,0.79439,3148.6,3148.3,2.18098551]
[1642604046915,0.00113684,3148.5,3148.3,2.18098551]
[1642604047115,0.00113684,3148.5,3148.3,0.79439]
[1642604047914,0.00113684,3148.5,3148.4,3.31818558]
[1642604048119,0.00113684,3148.5,3148.4,0.3]
[1642604048515,0.00113684,3148.5,3148.4,1.594495]
[1642604049318,0.00113684,3148.5,3148.4,0.3]
[1642604049915,0.00113684,3148.5,3148.3,0.79439]
[1642604050118,0.00113684,3148.5,3148.2,1.58878]
[1642604050319,1.55560759,3148.3,3148.2,1.58878]
[1642604050560,0.3,3148.3,3147.8,1.5892]
[1642604050965,0.00113684,3148.5,3147.9,0.0022737]
[1642604051159,1.58937,3148.3,3147.9,0.0022737]
[1642604051363,0.79469,3148.2,3147.9,0.0022737]
[1642604051760,1.79469,3148.2,3147.9,0.7968337]
[1642604052162,0.79469,3148.2,3148.0,0.00170527]
[1642604052361,0.3,3148.3,3148.0,0.00170527]
[1642604052559,0.00113684,3148.5,3148.0,0.00170527]
[1642604053165,0.00113684,3148.5,3148.2,2.13494894]
[1642604053365,0.00113684,3148.5,3148.2,4.87994505]
[1642604053568,0.00113684,3148.5,3148.3,0.3]
[1642604053767,0.00113684,3148.5,3148.3,2.68306]
[1642604054600,0.00113684,3148.5,3148.3,3.47743]
[1642604054901,0.00113684,3148.5,3148.3,6.19206243]
[1642604055102,0.00113684,3148.5,3148.3,3.47743]
[1642604055302,0.3,3148.8,3148.3,7.27743]
[1642604055500,1.7943601,3149.1,3148.4,3.5410247]
[1642604055501,0.79434,3149.0,3148.4,3.5410247]
[1642604055701,1.60685924,3149.5,3148.4,3.5410247]
[1642604055702,0.00113685,3148.7,3148.5,2.38295]
[1642604055904,2.40448689,3149.9,3148.5,2.38295]
[1642604055905,1.60685924,3150.0,3148.8,0.05519554]
[1642604056106,1.60685924,3150.0,3148.8,3.01818558]
[1642604056402,0.00454739,3149.5,3148.9,0.3]
[1642604056603,0.00454739,3149.5,3149.3,0.3]
[1642604056803,0.00397897,3149.4,3148.8,1.58827]
[1642604057002,0.00397897,3149.4,3148.9,0.3]
[1642604057200,0.79421,3149.6,3148.9,0.3]
[1642604057201,0.00341054,3149.3,3148.9,0.3]
[1642604057600,0.79421,3149.6,3149.0,2.38266]
[1642604057601,0.00284212,3149.2,3149.0,2.38266]
[1642604058057,0.79413,3149.9,3149.1,5.39365649]
[1642604058455,0.00625266,3149.8,3149.1,5.39365649]
[1642604058661,0.00625266,3149.8,3149.4,1.24584323]
[1642604058857,0.00568424,3149.7,3149.4,1.09412]
[1642604059256,0.00511581,3149.6,3149.4,1.09412]
[1642604059458,0.00511581,3149.6,3149.4,1.88825]
[1642604059656,0.00454739,3149.5,3149.4,1.88825]
[1642604060057,1.60685924,3150.2,3149.5,0.79403]
[1642604060260,1.60685924,3150.1,3149.5,1.58809]
[1642604060459,0.00170527,3149.8,3149.7,0.79405]
[1642604060661,0.00170527,3149.8,3149.7,1.09405]
[1642604063107,0.3,3150.0,3149.7,1.09405]
[1642604063308,0.3,3150.1,3149.7,1.09405]
[1642604063508,0.3,3150.3,3149.7,1.09405]
[1642604064107,0.00113684,3150.2,3149.8,0.79525685]
[1642604064507,0.00227369,3150.4,3149.9,0.3]
[1642604064708,0.00227369,3150.4,3149.9,1.88822]
[1642604064709,1.48555404,3150.4,3149.9,1.88822]
[1642604064908,0.00170527,3150.3,3149.9,1.7844986]
[1642604065108,1.60964839,3150.3,3149.9,1.7844986]
[1642604065553,0.00170527,3150.3,3150.0,0.79411]
[1642604065756,0.79412,3150.1,3150.0,0.79411]
[1642604066153,0.79412,3150.1,3150.0,1.09411]
[1642604066354,1.09412,3150.1,3150.0,0.3]
[1642604066955,1.09412,3150.1,3149.9,1.58822]
[1642604067158,1.09412,3150.1,3149.8,0.00113685]
[1642604067159,2.09412,3150.1,3149.8,0.00113685]
[1642604067356,0.42525206,3150.0,3149.8,0.00113685]
[1642604067560,6.3,3149.9,3149.4,1.58865]
[1642604067956,0.03362646,3149.8,3149.5,0.00170527]
[1642604068159,1.03362646,3149.8,3149.5,0.00170527]
[1642604068359,1.3,3149.8,3149.5,0.00170527]
[1642604068557,1.3,3149.8,3149.5,0.30170527]
[1642604068960,0.3,3149.8,3149.6,0.00113685]
[1642604069201,0.3,3149.9,3149.6,0.00113685]
[1642604069402,0.3,3150.0,3149.7,1.58829]
[1642604069604,0.7941436,3150.1,3149.7,1.58829]
[1642604069605,1.09584887,3150.1,3149.8,0.3]
[1642604069805,0.00113685,3150.0,3149.8,0.3]
[1642604070305,0.79415,3149.9,3149.8,0.3]
[1642604070507,1.09415,3149.9,3149.8,0.3]
[1642604073476,0.3,3149.9,3149.8,0.3]
[1642604073876,0.30113685,3150.0,3149.8,0.3]
[1642604074077,0.30113685,3150.0,3149.8,1.58829]
[1642604074281,0.30113685,3150.0,3149.8,1.88829]
[1642604075076,0.30113685,3150.0,3149.8,1.58829]
[1642604075678,0.30113685,3150.0,3149.8,1.88829]
[1642604076803,0.30113685,3150.0,3149.8,1.58829]
[1642604078004,0.30113685,3150.0,3149.8,1.88829]
[1642604078406,0.00113685,3150.0,3149.8,1.88829]
[1642604078806,0.00113685,3150.0,3149.9,0.3]
[1642604081053,0.64832409,3150.2,3150.0,0.79404]
[1642604081460,0.127123,3150.7,3150.1,3.30785984]
[1642604081660,0.127123,3150.7,3150.2,0.08825236]
[1642604082059,2.40448689,3151.6,3150.7,0.79373]
[1642604082259,2.40448689,3151.8,3151.0,0.03900174]
[1642604082459,2.40448689,3151.8,3150.8,1.32763826]
[1642604082659,0.79373,3151.7,3150.9,1.50720162]
[1642604082860,0.79714054,3151.7,3150.9,1.50833847]
[1642604083059,2.09714054,3151.7,3150.9,1.50833847]
[1642604083259,3.50162743,3151.7,3150.9,1.50833847]
[1642604083460,4.50162743,3151.7,3150.9,1.50833847]
[1642604083661,2.09714054,3151.7,3151.1,0.7937]
[1642604083961,2.09714054,3151.7,3151.2,0.79373]
[1642604084219,2.09714054,3151.7,3151.4,0.3]
[1642604084411,2.09714054,3151.7,3151.0,1.5874]
[1642604084614,1.09714054,3151.7,3151.0,1.5874]
[1642604085014,2.40448689,3151.9,3151.4,0.79374]
[1642604085218,6.94663827,3152.6,3151.5,3.92579311]
[1642604085416,9.2139661,3153.0,3151.5,3.92692995]
[1642604085417,2.40448689,3152.7,3151.5,3.92692995]
[1642604085613,0.00113685,3151.9,3151.7,0.05624724]
[1642604085811,3.36951574,3153.2,3151.8,4.75]
[1642604086011,3.6593,3153.3,3152.4,1.44334853]
[1642604086211,0.00625266,3153.0,3152.6,0.79342]
[1642604086414,0.00625266,3153.0,3152.7,0.3]
[1642604086614,0.00568424,3152.9,3152.7,0.3]
[1642604086812,3.20392186,3153.6,3152.7,0.6143]
[1642604087112,0.16560942,3153.7,3152.7,0.6143]
[1642604087113,0.00341054,3153.5,3152.7,0.6143]
[1642604087510,0.16560942,3153.7,3152.8,2.82770395]
[1642604087714,3.20392186,3153.9,3152.9,1.5865]
[1642604087715,1.58651,3153.9,3152.9,1.5865]
[1642604087953,1.58651,3153.9,3153.0,3.19072462]
[1642604087954,0.00113685,3153.6,3153.0,3.19072462]
[1642604088160,0.00113685,3153.6,3153.1,1.47282377]
[1642604088358,0.00113685,3153.6,3153.1,0.30170527]
[1642604088558,0.00113685,3153.6,3153.2,0.00113684]
[1642604088860,0.00113685,3153.6,3153.3,0.3]
[1642604089459,0.00113685,3153.6,3153.2,1.09435684]
[1642604089967,1.58782685,3153.6,3153.3,0.79326]
[1642604090162,1.58782685,3153.6,3152.8,1.58705]
[1642604090163,0.04481642,3153.1,3152.8,1.58705]
[1642604090558,5.4935,3153.0,3152.9,0.00170527]
[1642604090958,6.7935,3153.0,3152.9,0.00170527]
[1642604091921,5.4935,3153.0,3152.9,0.00170527]
[1642604092116,5.4935,3153.0,3152.9,0.30170527]
[1642604092317,6.4935,3153.0,3152.9,0.30170527]
[1642604092521,5.4935,3153.0,3152.9,0.30170527]
[1642604093621,7.0935,3153.0,3152.9,0.30170527]
[1642604093821,7.0935,3153.0,3152.8,1.09344]
[1642604093822,8.0935,3153.0,3152.8,1.09344]
[1642604094025,8.0935,3153.0,3152.7,0.3143]
[1642604094026,1.0,3152.9,3152.7,0.3143]
[1642604094225,0.38,3152.8,3152.7,0.3143]
[1642604094524,0.38,3152.8,3152.7,0.00123685]
[1642604095655,6.68,3152.8,3152.7,0.00123685]
[1642604096061,7.68,3152.8,3152.7,0.00123685]
[1642604097265,6.68,3152.8,3152.7,0.30123685]
[1642604097964,0.38,3152.8,3152.7,2.9343624]
[1642604098167,0.04481642,3153.1,3152.7,2.9343624]
[1642604098369,0.04481642,3153.1,3152.8,0.79328]
[1642604098564,0.04481642,3153.1,3152.9,0.3]
[1642604099812,0.04481642,3153.1,3152.8,1.58662]
[1642604100012,0.04481642,3153.1,3152.8,0.7183897]
[1642604100413,0.42481642,3153.1,3152.7,1.58769685]
[1642604100612,0.72481642,3153.1,3152.7,1.58769685]
[1642604100811,0.79353,3153.0,3152.7,1.58769685]
[1642604101414,1.79353,3153.0,3152.7,1.58769685]
[1642604102213,1.79353,3153.0,3152.7,0.00113685]
[1642604102214,2.89312568,3153.0,3152.7,0.00113685]
[1642604102416,0.79353,3153.0,3152.7,0.00113685]
[1642604103085,0.76676534,3153.0,3152.7,0.00113685]
[1642604103583,1.45969204,3152.9,3152.5,0.0022737]
[1642604103782,1.58706,3152.8,3152.5,0.0022737]
[1642604103983,1.88706,3152.8,3152.5,0.0022737]
[1642604104187,0.15,3152.7,3152.5,0.0022737]
[1642604104385,0.15,3152.7,3151.5,3.95279997]
[1642604104386,6.3,3152.6,3151.5,3.95279997]
[1642604104583,0.15,3151.9,3151.5,4.1146]
[1642604104785,1.73751,3151.9,3151.0,7.1833]
[1642604104984,2.03751,3151.9,3151.0,3.432]
[1642604105184,1.38,3152.5,3151.4,1.58744]
[1642604105185,0.15,3151.8,3151.4,1.58744]
[1642604105390,0.4937,3152.4,3151.6,6.0]
[1642604105587,0.4937,3152.4,3152.0,0.01242756]
[1642604105985,0.4937,3152.4,3152.1,0.00227369]
[1642604106587,0.4937,3152.4,3152.1,0.79565719]
[1642604106808,0.4937,3152.4,3152.1,1.58904719]
[1642604107007,0.4937,3152.4,3152.2,0.00170527]
[1642604107610,0.7937,3152.4,3152.2,0.00170527]
[1642604107807,5.3937,3152.3,3152.2,0.00170527]
[1642604108221,5.6937,3152.3,3152.2,0.00170527]
[1642604108416,6.6937,3152.3,3152.2,0.00170527]
[1642604108814,6.6937,3152.3,3152.1,0.00227369]
[1642604109015,7.7937,3152.2,3152.1,0.00227369]
[1642604109217,1.4937,3152.2,3152.1,0.00227369]
[1642604109623,0.4937,3152.2,3152.1,0.00227369]
[1642604110466,0.4937,3152.2,3152.1,1.49086796]
[1642604110675,0.4937,3152.2,3152.1,4.1845501]
[1642604110868,0.4937,3152.2,3152.1,1.49086796]
[1642604111067,0.4937,3152.2,3152.1,4.4609295]
[1642604111266,0.00113685,3152.7,3152.3,0.7933]
[1642604111467,0.00113685,3152.7,3152.4,1.09331]
[1642604112466,0.00113685,3152.7,3152.4,2.67998]
[1642604112671,0.00113685,3152.7,3152.5,5.95760066]
[1642604112870,12.5304,3154.2,3152.7,6.76852659]
[1642604113072,11.4001,3154.2,3152.8,3.4689171]
[1642604113278,11.4001,3154.2,3153.0,6.31254954]
[1642604113279,7.45,3154.2,3153.0,6.31254954]
[1642604113476,1.5891119,3154.6,3153.8,0.01265348]
[1642604113672,0.00625266,3154.1,3153.8,0.01265348]
[1642604113876,1.5891119,3154.6,3153.9,1.5857404]
[1642604114076,1.5891119,3154.6,3154.0,3.75299298]
[1642604114350,0.00227369,3154.5,3154.1,0.3]
[1642604114551,0.00227369,3154.5,3154.3,0.3]
[1642604114748,0.00170527,3154.4,3154.3,1.88561]
[1642604115750,0.00170527,3154.4,3154.1,0.7928254]
[1642604115751,0.00170527,3154.4,3153.5,3.17117]
[1642604115955,0.00170527,3154.4,3153.7,0.79305]
[1642604116149,0.00113684,3154.3,3153.8,1.5859227]
[1642604116351,0.00113684,3154.3,3153.9,2.66816588]
[1642604116554,0.00113684,3154.3,3154.0,0.3]
[1642604117251,0.00113684,3154.3,3154.1,1.34536167]
[1642604117454,1.5891119,3154.6,3154.3,4.6]
[1642604117656,1.5891119,3154.6,3154.4,3.44561419]
[1642604117854,0.00113685,3154.5,3154.4,0.3]
[1642604118069,7.45,3155.5,3154.5,3.75]
[1642604118272,7.45,3155.5,3154.6,0.7926]